Cogmind - Beta 15 @@@ ROGUE MODE // 2025.05.13 @ 11:32:21 Player: Gimcond Result: Destroyed by Y-45 Defender with Beam Rifle Performance ------------- Evolutions (2) 1000 Regions Visited (4) 800 Robots Destroyed (35) 175 Value Destroyed (996) 996 Prototype IDs (2) 40 Alien Tech Used (0) 0 Bonus (0) 0 TOTAL SCORE: 3011 Bonus ------- None Cogmind --------- Core Integrity 0/550 Matter 177/300 Energy 98/100 System Corruption 0% Temperature Cool (9) Movement Core (350) Ox6 Location -8/Materials Parts ------- > --- POWER (1) -------- (None) > --- PROPULSION (3) --- (None) > --- UTILITY (5) ------ Large Storage Unit > --- WEAPON (2) ------- (None) > --- INVENTORY (15) --- Ion Engine Aluminum Leg Aluminum Leg Peak State ------------ > --- POWER ------------ Cooled Ion Engine > --- PROPULSION ------- Wheel Wheel > --- UTILITY ---------- Targeting Computer ECM Suite Propulsion Shielding Hacking Suite > --- WEAPON ----------- Heavy Assault Rifle Mini Grenade Launcher > --- INVENTORY -------- Ion Engine Aluminum Leg Aluminum Leg Wheel Small Laser [Rating: 15] Favorites ----------- Power Cooled Ion Engine Engine Cooled Ion Engine Propulsion Wheel Treads Light Treads Leg Aluminum Leg Wheel Wheel Utility Hacking Suite Device ECM Suite Storage Small Storage Unit Processor Targeting Computer Hackware Hacking Suite Protection Propulsion Shielding Weapon Small Laser Energy Gun Small Laser Energy Cannon Particle Cannon Ballistic Gun Heavy Assault Rifle Launcher Mini Grenade Launcher Build | -11 -10 -9 -9 -8 ------- Run | Yrd Mat Mat Min Mat Slots Evolved 4 | . . 2 . 2 Power . | . . . . . Propulsion 1 | . . . . 1 Utility 3 | . . 2 . 1 Weapon . | . . . . . Parts Attached 31 | 12 2 8 5 4 Power 4 | 1 1 2 . . Engine 4 | 1 1 2 . . Core . | . . . . . Reactor . | . . . . . Propulsion 11 | 5 . 1 2 3 Treads 2 | 2 . . . . Leg 1 | 1 . . . . Wheel 8 | 2 . 1 2 3 Hover . | . . . . . Flight . | . . . . . Utility 9 | 3 . 3 2 1 Device 4 | 2 . 2 . . Storage 2 | 1 . . . 1 Processor 1 | . . . 1 . Hackware 1 | . . 1 . . Protection 1 | . . . 1 . Artifact . | . . . . . Weapon 7 | 3 1 2 1 . Energy Gun 4 | 3 1 . . . Energy Cannon 1 | . . 1 . . Ballistic Gun 1 | . . 1 . . Ballistic Cannon . | . . . . . Launcher 1 | . . . 1 . Special Weapon . | . . . . . Impact Weapon . | . . . . . Slashing Weapon . | . . . . . Piercing Weapon . | . . . . . Special Melee Weapon . | . . . . . Unidentified Prototypes . | . . . . . Parts Lost 18 | . . 4 1 13 Power 1 | . . . . 1 Propulsion 7 | . . 1 . 6 Utility 7 | . . 3 . 4 Weapon 3 | . . . 1 2 Highest Loss Streak 10 | . . 2 1 10 To Critical Strikes 1 | . . . . 1 Average Backups 3 | 3 4 3 4 3 Power . | 1 1 . 1 1 Propulsion 2 | 1 2 2 2 2 Utility . | . 1 . . . Weapon . | . . . 1 . Tool/Special . | . . . . . Unused Backups 2 | . 1 . . 1 Power 1 | . 1 . . . Propulsion 1 | . . . . 1 Utility . | . . . . . Weapon . | . . . . . Tool/Special . | . . . . . Average Slot Usage (%) 77 | . 98 86 77 39 Engine 10 | . 14 11 11 3 Wheel 21 | . 28 22 22 12 Device 15 | . 28 21 11 4 Hackware 8 | . . 9 11 3 Energy Gun 10 | . 26 18 . 3 Energy Cannon 4 | . . 1 10 . Ballistic Gun 3 | . . . 10 . Peak Build Rating 15 | 9 10 14 15 15 Average Rating 10 | 5 9 11 13 6 On Entrance 9 | . 9 10 13 13 Naked Turns 36 | . . . . 36 Heaviest Build 20 | 12 11 17 17 20 Greatest Support 40 | 40 20 20 20 30 Greatest Overweight (x) 6 | 2 . . . 6 Average Overweight (x) . | . . . . . Largest Inventory Capacity 15 | 8 5 5 5 15 Average Capacity 5 | 6 5 5 5 5 Most Carried 5 | 5 5 5 5 4 Average Carried 3 | 3 4 3 4 3 Final Capacity 15 | 5 5 5 5 15 Final Carried 5 | 5 4 4 5 3 Class Distribution -------------------- 85% | Scavenger-Mutant 14% | Mutant Dominant Class ---------------- Scavenger-Mutant | -10/Materials Scavenger-Mutant | -9/Materials Scavenger-Mutant | -9/Mines Mutant | -8/Materials Resources | -11 -10 -9 -9 -8 ----------- Run | Yrd Mat Mat Min Mat Matter Collected 478 | 86 . 311 81 . Remotely . | . . . . . Salvage Created 1046 | 104 16 651 133 142 Parts 75 | 10 2 45 6 12 Haulers Intercepted . | . . . . . Recyclers Shooed . | . . . . . Parts Field Recycled . | . . . . . Retrieved Matter . | . . . . . Parts Self-Destructed . | . . . . . Prevented . | . . . . . Kills | -11 -10 -9 -9 -8 ------- Run | Yrd Mat Mat Min Mat Combat Hostiles Destroyed 28 | . . 14 7 7 Guns 17 | . . 13 3 1 Cannons 4 | . . 1 3 . AOE 7 | . . . 1 6 Classes Destroyed 11 | 2 1 5 2 1 Worker 1 | . . 1 . . Tunneler 4 | 3 . . . 1 Recycler 1 | 1 . . . . Operator 1 | . . 1 . . Watcher 2 | . 1 . . 1 Swarmer 4 | . . . . 4 Grunt 18 | . . 12 3 3 Brawler 1 | . . 1 . . Sentry 1 | . . 1 . . Demolisher 2 | . . . 2 . Assembled 2 | . . . 2 . Best Kill Streak 8 | 4 1 8 3 5 Combat Bots Only 8 | . . 8 3 4 Max Kills in Single Turn 2 | 1 1 1 1 2 Gunslinging . | . . . . . Exploded 1 | . . . 1 1 Melee . | . . . . . Uniques/NPCs Destroyed . | . . . . . Combat | -11 -10 -9 -9 -8 -------- Run | Yrd Mat Mat Min Mat Hostile Shots Fired 159 | . 2 54 11 92 Missed 52 | . 1 20 . 31 Hits 107 | . 1 34 11 61 Melee 2 | . . 2 . . Projectile 105 | . 1 32 11 61 AOE 7 | . . . 7 . Critical Strikes 7 | . 1 3 . 3 Damage Taken 1776 | . 16 409 404 947 Core 794 | . 2 121 121 550 Absorbed by Shields . | . . . . . Redirected to Shielding 26 | . . . 4 22 Core Remaining (%) 79 | 100 99 . 39 . Volleys Fired 70 | 11 1 40 10 8 Largest 2 | 2 2 2 2 2 Hottest 108 | 90 85 108 91 70 Shots Fired 120 | 22 2 63 18 15 Gun 99 | 22 2 59 9 7 Cannon 11 | . . 4 7 . Launcher 10 | . . . 2 8 Special . | . . . . . Kinetic 9 | . . . 9 . Thermal 81 | 22 1 44 7 7 Explosive 10 | . . . 2 8 Electromagnetic 20 | . 1 19 . . Robot Hit Streak 9 | 4 3 9 4 5 Robot Miss Streak 2 | 2 . 2 1 1 Penetration Max . | . . . . . Secondary Targets . | . . . . . Shots Hit Robots 67 | 14 1 38 10 4 Core Hits 55 | 5 1 23 8 18 Critical Kills . | . . . . . Critical Parts Destroyed . | . . . . . Critical Strikes 1 | . . 1 . . Corrupt 1 | . . 1 . . Melee Attacks . | . . . . . Impact . | . . . . . Slashing . | . . . . . Piercing . | . . . . . Sneak Attacks . | . . . . . Combat Hostiles . | . . . . . Follow-up Attacks . | . . . . . Damage Inflicted 1814 | 165 30 539 309 771 Guns 757 | 165 28 444 66 54 Cannons 185 | . . 82 103 . Explosions 857 | . . . 140 717 Melee . | . . . . . Ramming 15 | . 2 13 . . Kinetic 66 | . . . 66 . Thermal 615 | 165 . 293 103 54 Explosive 857 | . . . 140 717 Electromagnetic 261 | . 28 233 . . Impact . | . . . . . Slashing . | . . . . . Piercing . | . . . . . Highest Corruption 7 | . . 7 7 . Average Corruption 6 | . . 6 7 . Corruption Purged . | . . . . . Corruption Blocked . | . . . . . Effects 15 | . . 6 9 . Message Errors 3 | . . . 3 . Matter Fused 5 | . . 2 3 . Heat Flow Errors 1 | . . . 1 . Energy Discharges 1 | . . 1 . . Parts Rejected 1 | . . 1 . . Data Loss (minor) 4 | . . 2 2 . Overload Shots . | . . . . . Overflow Damage 61 | . . . 3 58 Projectiles . | . . . . . Explosions 61 | . . . 3 58 Melee . | . . . . . Knockbacks . | . . . . . Impact . | . . . . . Kinetic . | . . . . . Secondary . | . . . . . Self-Inflicted Damage 169 | . 1 6 64 98 Shots 4 | . . . 2 2 Rammed 4 | . 3 1 . . Targets Rammed 4 | . 3 1 . . Kicked . | . . . . . Crushed . | . . . . . Highest Temperature 266 | 214 24 193 266 13 Average Temperature 67 | 108 11 61 56 8 Received Heat Transfer 567 | . 27 225 18 297 Siege Activations . | . . . . . Martial Activations . | . . . . . Shielding Activations . | . . . . . Robots Disrupted . | . . . . . Combat Hostiles . | . . . . . Robots Corrupted . | . . . . . Combat Hostiles . | . . . . . Parts Fried . | . . . . . Impact Corruptions . | . . . . . Robots Melted . | . . . . . Combat Hostiles . | . . . . . Parts Melted 1 | . . 1 . . Heat Transferred 1355 | 422 . 623 185 125 Parts Sabotaged . | . . . . . Parts Stolen . | . . . . . Parts Stripped . | . . . . . Power Chain Reactions . | . . . . . Alert | -11 -10 -9 -9 -8 ------- Run | Yrd Mat Mat Min Mat Maximum Alert Level 1 | . . 1 . . Low Security (%) 96 | 100 100 91 100 100 Level 1 3 | . . 8 . . Level 2 . | . . . . . Level 3 . | . . . . . Level 4 . | . . . . . Level 5 . | . . . . . High Security . | . . . . . Max Security . | . . . . . Peak Influence 210 | 10 15 210 73 131 Initial 73 | . . 5 73 26 Average 57 | . . 113 25 72 Influence Increases 831 | 20 22 390 139 260 Destroy 0b10 Robot/C 520 | . . 280 100 140 Destroy 0b10 Robot/NC 50 | 20 5 10 5 10 Destroy Leader 104 | . 2 60 20 22 Successful Hack 10 | . . 10 . . Disable Machine 15 | . . 15 . . Destroy Structure 57 | . . . 14 43 Lose Combat Pursuer 75 | . 15 15 . 45 Influence Decreases 745 | 20 7 215 260 243 Entered New Map 170 | . . 10 117 43 Time Decay 395 | 20 7 165 133 70 Lost Part 180 | . . 40 10 130 Squads Dispatched 7 | . . 4 . 3 Investigation 3 | . . 3 . . Extermination . | . . . . . Reinforcement 1 | . . 1 . . Assault . | . . . . . Garrison 3 | . . . . 3 Intercept . | . . . . . Searches Triggered . | . . . . . Construction Impeded . | . . . . . Haulers Reinforced . | . . . . . Active Scanning Responses . | . . . . . Cargo Convoy Interrupts . | . . . . . Stealth | -11 -10 -9 -9 -8 --------- Run | Yrd Mat Mat Min Mat Distress Signals 2 | . . 2 . . Communications Jammed . | . . . . . Distress Signals . | . . . . . Times Spotted 60 | . 4 25 8 23 Peak Tracking Total 12 | . 3 10 3 12 Tactical Retreats 10 | . 1 4 1 4 Traps | -11 -10 -9 -9 -8 ------- Run | Yrd Mat Mat Min Mat Traps Triggered 2 | . . 1 . 1 Indirectly . | . . . . . Trap Hack Attempts . | . . . . . Triggered . | . . . . . Disarmed . | . . . . . Reprogrammed . | . . . . . Reused . | . . . . . Traps Extracted . | . . . . . Installed . | . . . . . Triggered . | . . . . . Machines | -11 -10 -9 -9 -8 ---------- Run | Yrd Mat Mat Min Mat Machines Disabled 1 | . . 1 . . Max in Single Turn 1 | . . 1 . . Machines Repaired . | . . . . . Machines Dismantled . | . . . . . Machines Sabotaged . | . . . . . Overloaded Fab Kills . | . . . . . Hacking | -11 -10 -9 -9 -8 --------- Run | Yrd Mat Mat Min Mat Machines Accessed 4 | . . 4 . . Terminals 3 | . . 3 . . Fabricators . | . . . . . Repair Stations 1 | . . 1 . . Recycling Units . | . . . . . Scanalyzers . | . . . . . Garrison Access . | . . . . . Total Hacks 15 | . . 15 . . Successful 8 | . . 8 . . Failed 7 | . . 7 . . Catastrophic . | . . . . . Database Lockouts . | . . . . . Manual 3 | . . 3 . . Terminals 13 | . . 13 . . Fabricators . | . . . . . Repair Stations 2 | . . 2 . . Recycling Units . | . . . . . Scanalyzers . | . . . . . Garrison Access . | . . . . . Terminal Hacks 6 | . . 6 . . Robot Analysis 1 | . . 1 . . Prototype ID Bank 1 | . . 1 . . Branch Access Points 1 | . . 1 . . Alert Level 1 | . . 1 . . Dispatch Records 1 | . . 1 . . Zone Layout 1 | . . 1 . . Fabricator Hacks . | . . . . . Repair Station Hacks 1 | . . 1 . . Scan Component 1 | . . 1 . . Recycling Unit Hacks . | . . . . . Scanalyzer . | . . . . . Garrison Access Hacks . | . . . . . Unauthorized Hacks 1 | . . 1 . . Terminals 1 | . . 1 . . Botnet 1 | . . 1 . . Fabricators . | . . . . . Repair Stations . | . . . . . Recycling Units . | . . . . . Scanalyzers . | . . . . . Garrison Access . | . . . . . Data Cores Recovered . | . . . . . Used . | . . . . . Hacking Detections 3 | . . 3 . . Full Trace Events 2 | . . 2 . . Feedback Events . | . . . . . Feedback Blocked . | . . . . . Robot Schematics Acquired . | . . . . . Robots Built . | . . . . . Authchips . | . . . . . Time . | . . . . . Total Robot Build Rating . | . . . . . Part Schematics Acquired . | . . . . . Parts Built . | . . . . . Authchips . | . . . . . Time . | . . . . . Total Part Build Rating . | . . . . . Parts Repaired . | . . . . . Time . | . . . . . Parts Recycled . | . . . . . Recycled Matter . | . . . . . Retrieved Matter . | . . . . . Retrieved Components . | . . . . . Parts Scanalyzed . | . . . . . Part Schematics Acquired . | . . . . . Parts Damaged . | . . . . . Bothacking | -11 -10 -9 -9 -8 ------------ Run | Yrd Mat Mat Min Mat Used RIF Installer . | . . . . . Robots Hacked . | . . . . . Non-combat . | . . . . . Combat . | . . . . . Robot Hacks Applied . | . . . . . Relay Couplers Released . | . . . . . Fabnet Peak Effective % . | . . . . . Robots Rewired . | . . . . . Allies Hacked . | . . . . . Hacks Repelled . | . . . . . Allies | -11 -10 -9 -9 -8 -------- Run | Yrd Mat Mat Min Mat Total Allies . | . . . . . Largest Group . | . . . . . Highest-Rated Group . | . . . . . Highest-Rated Ally . | . . . . . Total Orders . | . . . . . Ally Attacks . | . . . . . Total Damage . | . . . . . Kills . | . . . . . Allies Corrupted . | . . . . . Allies Melted . | . . . . . Intel | -11 -10 -9 -9 -8 ------- Run | Yrd Mat Mat Min Mat Active Infowar (turns) 938 | 26 103 375 354 80 Terrain 125 | 21 103 1 . . Seismic 480 | 26 103 351 . . ECM 660 | . . 226 354 80 Robot Analysis Total 1 | . . 1 . . Derelict Logs Recovered . | . . . . . Drone Launches . | . . . . . Drone Recoveries . | . . . . . Exploration | -11 -10 -9 -9 -8 ------------- Run | Yrd Mat Mat Min Mat Turns Passed 1129 | 132 103 389 354 151 Spaces Moved 820 | 55 110 258 215 182 Core 100 | 7 . . . 93 Treads 32 | 32 . . . . Legs 4 | 4 . . . . Wheels 684 | 12 110 258 215 89 Hover . | . . . . . Flight . | . . . . . Fastest Speed 50 | 50 80 80 80 50 Average Speed 80 | 132 80 80 80 66 Slowest Speed 350 | 190 80 80 80 350 Overloaded Moves . | . . . . . Propulsion Burnouts . | . . . . . Robots Hopped . | . . . . . Potential Cave-ins . | . . . . . Cave-ins Triggered . | . . . . . Exploration Rate (%) 34 | 5 35 33 74 23 Regions Visited 4 Branch Regions 1 Pre-discovered Areas . | . . . . . Known Exits Taken 1 | . . 1 . . Unknown Exits Taken 3 | 1 1 . 1 . Scrap Searched 1 | . . . 1 . Spaces Dug . | . . . . . Terrain Destroyed 72 | . . . 22 50 Melee . | . . . . . Projectile . | . . . . . AOE 72 | . . . 22 50 Terrain Rammed . | . . . . . Walls Destroyed . | . . . . . Machines Disabled . | . . . . . Actions | -11 -10 -9 -9 -8 --------- Run | Yrd Mat Mat Min Mat Total 1160 | 88 124 375 377 196 Wait 210 | . 3 64 143 . Move 816 | 54 109 257 214 182 Hop . | . . . . . Pick Up 11 | 5 2 4 . . Fast Attach 19 | 10 1 1 3 4 Attach 9 | 2 1 4 . 2 Detach 2 | 2 . . . . Swap 6 | 1 . 3 2 . Drop 10 | 3 4 1 2 . Fire 70 | 11 1 40 10 8 Melee . | . . . . . Ram 4 | . 3 1 . . Kick . | . . . . . Crush . | . . . . . Escape Stasis . | . . . . . Rewire 3 | . . . 3 . Trap . | . . . . . Miscellaneous . | . . . . . Route ------- -11/Scrapyard -10/Materials (discovered 2 exits: *Mat / [*Min]) -9/Materials (discovered 2 exits: *Min x2) -9/Mines -8/Materials History --------- Turn | Location | Event 11 | -11/Scrapyard | Discovered new exit (range 16) 133 | -11/Scrapyard | Entered Materials 230 | -10/Materials | Discovered new exit (range 9) 230 | -10/Materials | Discovered new exit (range 8) 236 | -10/Materials | Entered another Materials area 236 | -9/Materials | Evolved 2 slots: Utility x2 308 | -9/Materials | Build established: Scavenger-Mutant 406 | -9/Materials | Destroyed 8 combat bots 452 | -9/Materials | Identified exit to Mines 625 | -9/Materials | Entered Mines 649 | -9/Mines | Assembled infested the area 861 | -9/Mines | Core integrity fell below 50% 954 | -9/Mines | Discovered new exit (range 12) 979 | -9/Mines | Entered Materials 979 | -8/Materials | Evolved 2 slots: Propulsion x1, Utility x1 1056 | -8/Materials | Core integrity fell below 50% 1090 | -8/Materials | Lost 10 parts (1p3n4u2w) 1101 | -8/Materials | Core integrity fell below 20% 1130 | -8/Materials | Destroyed by Y-45 Defender with Beam Rifle Last Messages --------------- 01051_ U-05 Engineer lays Concrete. 01052_ R-06 Scavenger collects Flight Unit. 01053_ U-05 Engineer lays Concrete. 01058_ U-05 Engineer builds a Wall. 01059_ U-05 Engineer lays Concrete. 01059_ ECM Suite destroyed. 01060_ U-05 Engineer lays Concrete. 01062_ R-06 Scavenger collects Aluminum Leg. 01062_ K-01 Serf collects debris. 01062_ U-05 Engineer lays Concrete. 01062_ Critical hit (Burn: +37). 01063_ U-05 Engineer lays Concrete. 01070_ Acquired Wheel. 01083_ Y-45 Defender destroyed. 01097_ Wheel destroyed. 01106_ Triggered Blade Trap. 01106_ Massive razor-sharp blades shoot up from within the floor. 01109_ K-01 Serf collects debris. 01126_ Acquired Lrg. Storage Unit. Map ----- +----------------------------------------------------+ | ?????????????????????????# ##????????? | | ?????????????????????????# #?????????? | | ???????????????????########+##?????????? | | ???????????????????# #??????????? | | ???????????????????# #??????????? | | ???????????????????# #??????????? | | ???????????????????# #??????????? | | ???????????????????# #??????????? | | ???????????????????# #??????????? | | ???????????????????# #??????????? | | ???????????????????# #??????????? | | ???????????????????# #??????????? | | ???????????????????####/#####??????????? | | ??????? ##+####### #?????????????? | | ??????? #?????????????? | | ??????? T #?????????????? | | ??????? ##+####### #?????????????? | | ???????????# ### ##?????????????? | | ???????????# """ #?# #??????????????? | | ???????????# """ #?# #??????????????? | | ???????????# """ #?# #??????????????? | | ???????????# #?# #??????????????? | | ???????????+ #?# #??????????????? | | ???????????# #?# #??????????????? | | ???????????# #?# #??????????????? | | ???????????# @= ### #??????????????? | | ???????????# != + #??????????????? | | ???????????# Y== ## #??????????????? | | ???????????# ######## #???????????? | | ???????????##???????#!!!!==#???????????? | | ????????????????????#!!!!==#???????????? | | ????????????????????########???????????? | | ???????????????????????????????????????? | | | | | | | | | | | | | | | | | | | | | | | | | | | | | | | | | | | +----------------------------------------------------+ Best States ------------- Heat Dissipation 31 Energy Generation 14 Energy Capacity 280 Matter Stores 300 Matter Capacity 300 Sight Range 16 Terrain Scan Range 16 Terrain Scan Density 10 ECM Strength 1 Propulsion Shielding 33 Evasion (%) 50 Targeting Accuracy 5 Recoil Reduction 2 Offensive Hacking 10 Item Schematics ----------------- None Robot Schematics ------------------ None Fabricated ------------ Nothing Repaired ---------- Nothing Alien Tech Used ----------------- None Achievements -------------- None Challenges ------------ None Game ------ Seed SupersonicGravitonCycler Manual? 0 Play Time 00:20:18 Cumulative 11.7 hours Start 2025.05.13 @ 11:14:25 End 2025.05.13 @ 11:32:21 Sessions 1 Manual Loads 0 Difficulty Rogue Special Mode None Game No. 35 Rogue 35 Adventurer 0 Explorer 0 Win Type - Total 0 Types 0/0/0/0/0/0/0/0/0/0 Lore% 11 Gallery% 15 Achievement% 18 Wizard Run 0 Options --------- Layout 1 ASCII 1 Keyboard 0 Movement Numpad Keybinds 0 Fullscreen 1 Font 24/Smallcaps Map View 50x35 Zoom Use 0% Tactical HUD 1 Map Filters NONE Filters NONE Steam 1 RUN: 4a27c7d5-f56b-413c-b855-294ca7f2092b